[Event "*** Titled Tuesday 3|2 Blitz"]
[Site "Chess.com"]
[Date "2015.10.06"]
[Round "4"]
[White "HubertKnott"]
[Black "Badouuu"]
[Result "0-1"]
[WhiteElo "2009"]
[BlackElo "1946"]
[TimeControl "180+2"]
[EndTime "11:48:51 PDT"]
[Termination "Badouuu won by resignation"]

1. d4 {[%clk 0:03:01.9]} 1... c5 {[%clk 0:03:00.6]} 2. d5 {[%clk 0:03:02.2]}
2... Nf6 {[%clk 0:03:02.2]} 3. c4 {[%clk 0:03:03.2]} 3... e6 {[%clk 0:03:03.8]}
4. Nc3 {[%clk 0:03:03.6]} 4... exd5 {[%clk 0:03:05.4]} 5. cxd5 {[%clk
0:03:04.8]} 5... d6 {[%clk 0:03:07]} 6. e4 {[%clk 0:03:05.9]} 6... g6 {[%clk
0:03:08.4]} 7. Nf3 {[%clk 0:03:07]} 7... Bg7 {[%clk 0:03:09.9]} 8. Be2 {[%clk
0:03:08.3]} 8... O-O {[%clk 0:03:10.9]} 9. O-O {[%clk 0:03:09.9]} 9... a6 {[%clk
0:03:10.6]} 10. a4 {[%clk 0:03:10.2]} 10... Re8 {[%clk 0:03:09.7]} 11. Nd2
{[%clk 0:03:10.3]} 11... Nbd7 {[%clk 0:03:09.2]} 12. Qc2 {[%clk 0:03:06.8]}
12... Qc7 {[%clk 0:03:09.7]} 13. a5 {[%clk 0:03:04.8]} 13... b5 {[%clk
0:03:04.8]} 14. axb6 {[%clk 0:03:05.2]} 14... Nxb6 {[%clk 0:03:05.8]} 15. f3
{[%clk 0:03:03]} 15... Nh5 {[%clk 0:03:05.9]} 16. Nc4 {[%clk 0:02:57.7]} 16...
Nxc4 {[%clk 0:03:04.7]} 17. Bxc4 {[%clk 0:02:58.2]} 17... f5 {[%clk 0:03:05.6]}
18. Bd2 {[%clk 0:02:43]} 18... f4 {[%clk 0:02:51.4]} 19. Ne2 {[%clk 0:02:39.4]}
19... Be5 {[%clk 0:02:48.5]} 20. Bc3 {[%clk 0:02:38.9]} 20... Qe7 {[%clk
0:02:45.2]} 21. Bxe5 {[%clk 0:02:37.6]} 21... Qxe5 {[%clk 0:02:43.7]} 22. Qc3
{[%clk 0:02:37.7]} 22... Qg5 {[%clk 0:02:44]} 23. Kh1 {[%clk 0:02:18.4]} 23...
Qh4 {[%clk 0:02:44.9]} 24. Qe1 {[%clk 0:01:55.3]} 24... Ng3+ {[%clk 0:02:44.5]}
25. Kg1 {[%clk 0:01:42.4]} 25... Nxe2+ {[%clk 0:02:40.4]} 26. Qxe2 {[%clk
0:01:37.8]} 26... Re5 {[%clk 0:02:34.4]} 27. Qf2 {[%clk 0:01:30.2]} 27... Qf6
{[%clk 0:02:34.1]} 28. Ra2 {[%clk 0:01:21.4]} 28... Rg5 {[%clk 0:02:31.8]} 29.
Rfa1 {[%clk 0:01:18.8]} 29... Bh3 {[%clk 0:02:31.4]} 30. g3 {[%clk 0:01:13.7]}
30... fxg3 {[%clk 0:02:32.3]} 31. hxg3 {[%clk 0:01:14.5]} 31... Rf8 {[%clk
0:02:26.9]} 32. Ra3 {[%clk 0:01:07.2]} 32... a5 {[%clk 0:02:25]} 33. Bf1 {[%clk
0:01:04.9]} 33... Bxf1 {[%clk 0:02:23.7]} 34. Kxf1 {[%clk 0:01:05.1]} 34... Rh5
{[%clk 0:02:22.2]} 35. Kg2 {[%clk 0:01:02.8]} 35... Qg5 {[%clk 0:01:48.9]} 36.
Rxa5 {[%clk 0:00:58.5]} 36... Qh6 {[%clk 0:01:49.4]} 37. Kf1 {[%clk 0:00:39.7]}
37... Rh1+ {[%clk 0:01:48.2]} 38. Ke2 {[%clk 0:00:40.6]} 38... Rh2 {[%clk
0:01:49.5]} 0-1

[Event "*** Titled Tuesday 3|2 Blitz"]
[Site "Chess.com"]
[Date "2015.10.06"]
[Round "4"]
[White "rikyshi"]
[Black "silverback96"]
[Result "0-1"]
[WhiteElo "2137"]
[BlackElo "1925"]
[TimeControl "180+2"]
[EndTime "11:49:24 PDT"]
[Termination "silverback96 won by checkmate"]

1. e4 {[%clk 0:03:01.9]} 1... e6 {[%clk 0:02:47.5]} 2. d4 {[%clk 0:03:02.2]}
2... d5 {[%clk 0:02:49]} 3. Nc3 {[%clk 0:03:03.4]} 3... Nf6 {[%clk 0:02:49.2]}
4. Bg5 {[%clk 0:03:03.7]} 4... dxe4 {[%clk 0:02:49.9]} 5. Nxe4 {[%clk
0:03:04.3]} 5... Nbd7 {[%clk 0:02:51]} 6. Nf3 {[%clk 0:03:04.7]} 6... h6 {[%clk
0:02:52.2]} 7. Bh4 {[%clk 0:03:00.6]} 7... c5 {[%clk 0:02:52]} 8. Nxf6+ {[%clk
0:02:52]} 8... Nxf6 {[%clk 0:02:52.6]} 9. dxc5 {[%clk 0:02:52.9]} 9... Qa5+
{[%clk 0:02:49.5]} 10. Qd2 {[%clk 0:02:51]} 10... Qxd2+ {[%clk 0:02:47.6]} 11.
Nxd2 {[%clk 0:02:52.9]} 11... Bxc5 {[%clk 0:02:48.5]} 12. O-O-O {[%clk
0:02:53.7]} 12... Nd5 {[%clk 0:02:45.6]} 13. Ne4 {[%clk 0:02:51.4]} 13... Be7
{[%clk 0:02:39.6]} 14. Bb5+ {[%clk 0:02:51.6]} 14... Bd7 {[%clk 0:02:35.9]} 15.
Bxd7+ {[%clk 0:02:50.8]} 15... Kxd7 {[%clk 0:02:35.9]} 16. Bxe7 {[%clk
0:02:30.3]} 16... Kxe7 {[%clk 0:02:35.7]} 17. Rhe1 {[%clk 0:02:20.2]} 17... Rhc8
{[%clk 0:02:29.2]} 18. Ng3 {[%clk 0:01:58.8]} 18... Kf6 {[%clk 0:02:26]} 19. Re4
{[%clk 0:01:50.9]} 19... Rc6 {[%clk 0:02:22.9]} 20. Rd3 {[%clk 0:01:42.4]} 20...
Rac8 {[%clk 0:02:23.3]} 21. c3 {[%clk 0:01:42.4]} 21... b5 {[%clk 0:02:24.7]}
22. a3 {[%clk 0:01:31.5]} 22... a5 {[%clk 0:02:24.5]} 23. Rg4 {[%clk 0:01:23.2]}
23... b4 {[%clk 0:02:19.7]} 24. axb4 {[%clk 0:01:23.7]} 24... axb4 {[%clk
0:02:18.6]} 25. Rf3+ {[%clk 0:01:24.6]} 25... Ke7 {[%clk 0:02:16.3]} 26. Rxg7
{[%clk 0:01:25.5]} 26... bxc3 {[%clk 0:02:15.6]} 27. Rfxf7+ {[%clk 0:01:26.3]}
27... Kd6 {[%clk 0:02:16.8]} 28. Rd7+ {[%clk 0:01:23.7]} 28... Ke5 {[%clk
0:02:17.1]} 29. bxc3 {[%clk 0:00:21.1]} 29... Rxc3+ {[%clk 0:02:16.3]} 30. Kd1
{[%clk 0:00:21.4]} 30... Rd3+ {[%clk 0:01:57.4]} 31. Ke1 {[%clk 0:00:21.9]}
31... Rc1+ {[%clk 0:01:56.3]} 32. Ke2 {[%clk 0:00:23.1]} 32... Nf4# {[%clk
0:01:56.3]} 0-1

[Event "*** Titled Tuesday 3|2 Blitz"]
[Site "Chess.com"]
[Date "2015.10.06"]
[Round "4"]
[White "SenseiJulio"]
[Black "AleksandrNevski"]
[Result "1-0"]
[WhiteElo "2593"]
[BlackElo "2425"]
[TimeControl "180+2"]
[EndTime "11:49:43 PDT"]
[Termination "SenseiJulio won by resignation"]

1. d4 {[%clk 0:03:01.9]} 1... Nf6 {[%clk 0:03:00.2]} 2. c4 {[%clk 0:03:03]} 2...
g6 {[%clk 0:03:01.4]} 3. Nc3 {[%clk 0:03:04.2]} 3... Bg7 {[%clk 0:03:03.1]} 4.
e4 {[%clk 0:03:05.1]} 4... O-O {[%clk 0:03:04.7]} 5. h3 {[%clk 0:03:06.8]} 5...
d6 {[%clk 0:03:05.5]} 6. Be3 {[%clk 0:03:08.3]} 6... e5 {[%clk 0:03:02.5]} 7. d5
{[%clk 0:03:09.9]} 7... Na6 {[%clk 0:02:59.9]} 8. Bd3 {[%clk 0:03:10.3]} 8...
Nh5 {[%clk 0:02:54.3]} 9. Nge2 {[%clk 0:03:08.3]} 9... f5 {[%clk 0:02:53.6]} 10.
exf5 {[%clk 0:03:05.7]} 10... gxf5 {[%clk 0:02:54]} 11. g4 {[%clk 0:03:04.8]}
11... fxg4 {[%clk 0:02:36.9]} 12. hxg4 {[%clk 0:03:03.7]} 12... Bxg4 {[%clk
0:02:35.9]} 13. Qd2 {[%clk 0:02:39.8]} 13... Nc5 {[%clk 0:02:24.7]} 14. Bc2
{[%clk 0:02:36.2]} 14... Bf3 {[%clk 0:01:44]} 15. Rh2 {[%clk 0:02:28.2]} 15...
Nd7 {[%clk 0:01:34.6]} 16. O-O-O {[%clk 0:02:27.3]} 16... Ndf6 {[%clk
0:01:34.6]} 17. Rg1 {[%clk 0:02:24.3]} 17... Kh8 {[%clk 0:01:34.3]} 18. Bg5
{[%clk 0:02:15.5]} 18... Qd7 {[%clk 0:01:29.8]} 19. Ng3 {[%clk 0:02:16.2]} 19...
Rf7 {[%clk 0:01:09.9]} 20. Nxh5 {[%clk 0:01:10.4]} 20... Nxh5 {[%clk 0:01:07.8]}
21. Qd3 {[%clk 0:01:11.4]} 21... e4 {[%clk 0:00:58.7]} 22. Nxe4 {[%clk
0:01:11.3]} 22... Qf5 {[%clk 0:00:47.4]} 23. Nxd6 {[%clk 0:00:57]} 23... cxd6
{[%clk 0:00:34.5]} 24. Qxf5 {[%clk 0:00:58]} 24... Rxf5 {[%clk 0:00:35.5]} 25.
Bxf5 {[%clk 0:00:59.9]} 25... Be5 {[%clk 0:00:30.8]} 26. Rh3 {[%clk 0:00:59.7]}
26... Be2 {[%clk 0:00:28.5]} 27. Re1 {[%clk 0:00:42.1]} 27... Rf8 {[%clk
0:00:23.6]} 28. Rxe2 {[%clk 0:00:42.9]} 28... Rxf5 {[%clk 0:00:23.9]} 29. Rxh5
{[%clk 0:00:44]} 29... Rxg5 {[%clk 0:00:22.9]} 30. Rxg5 {[%clk 0:00:44.4]} 30...
Bf4+ {[%clk 0:00:24.8]} 31. Kc2 {[%clk 0:00:45.8]} 31... Bxg5 {[%clk 0:00:26.7]}
32. Re6 {[%clk 0:00:46.4]} 32... Bf4 {[%clk 0:00:26]} 33. Re4 {[%clk 0:00:42.2]}
33... Be5 {[%clk 0:00:26.4]} 34. Rxe5 {[%clk 0:00:41.2]} 34... dxe5 {[%clk
0:00:27.1]} 35. d6 {[%clk 0:00:42.7]} 1-0

[Event "*** Titled Tuesday 3|2 Blitz"]
[Site "Chess.com"]
[Date "2015.10.06"]
[Round "4"]
[White "Iball95"]
[Black "FairChess_on_YouTube"]
[Result "0-1"]
[WhiteElo "2357"]
[BlackElo "2717"]
[TimeControl "180+2"]
[EndTime "11:50:04 PDT"]
[Termination "FairChess_on_YouTube won by checkmate"]

1. e4 {[%clk 0:02:59]} 1... c5 {[%clk 0:03:00.7]} 2. Nf3 {[%clk 0:03:00.1]} 2...
d6 {[%clk 0:03:00.9]} 3. d4 {[%clk 0:03:00.5]} 3... cxd4 {[%clk 0:03:02.6]} 4.
Qxd4 {[%clk 0:03:01.9]} 4... a6 {[%clk 0:03:02.9]} 5. c4 {[%clk 0:03:01.5]} 5...
Nc6 {[%clk 0:03:03.9]} 6. Qe3 {[%clk 0:02:58.6]} 6... g6 {[%clk 0:03:04.6]} 7.
Be2 {[%clk 0:02:58.2]} 7... Bg7 {[%clk 0:03:05.3]} 8. O-O {[%clk 0:02:59.6]}
8... Nf6 {[%clk 0:03:05.9]} 9. Nc3 {[%clk 0:03:00.3]} 9... Ng4 {[%clk
0:03:04.9]} 10. Qd3 {[%clk 0:02:55.4]} 10... O-O {[%clk 0:03:05.4]} 11. Bd2
{[%clk 0:02:48]} 11... Be6 {[%clk 0:03:06]} 12. b3 {[%clk 0:02:43.1]} 12... Qb8
{[%clk 0:02:47.2]} 13. Rac1 {[%clk 0:02:27]} 13... Rd8 {[%clk 0:02:38.1]} 14.
Nd5 {[%clk 0:02:14.8]} 14... a5 {[%clk 0:02:37.8]} 15. h3 {[%clk 0:02:08]} 15...
Nge5 {[%clk 0:02:37.4]} 16. Nxe5 {[%clk 0:02:08.2]} 16... dxe5 {[%clk
0:02:38.6]} 17. Qe3 {[%clk 0:01:58.9]} 17... Kf8 {[%clk 0:02:31.2]} 18. Bc3
{[%clk 0:01:42.6]} 18... Nd4 {[%clk 0:02:30.8]} 19. Kh1 {[%clk 0:01:31.9]} 19...
Ra6 {[%clk 0:02:06.6]} 20. c5 {[%clk 0:01:20.5]} 20... Nxe2 {[%clk 0:02:06.1]}
21. Qxe2 {[%clk 0:01:20.4]} 21... Bxd5 {[%clk 0:02:07.2]} 22. exd5 {[%clk
0:01:16.1]} 22... Rxd5 {[%clk 0:02:08.8]} 23. Qb5 {[%clk 0:00:53]} 23... e4
{[%clk 0:01:58.3]} 24. Bxg7+ {[%clk 0:00:52.5]} 24... Kxg7 {[%clk 0:01:59.1]}
25. a3 {[%clk 0:00:37.2]} 25... g5 {[%clk 0:01:49.8]} 26. b4 {[%clk 0:00:38]}
26... g4 {[%clk 0:01:50]} 27. Rc3 {[%clk 0:00:32.2]} 27... axb4 {[%clk
0:01:46.4]} 28. Qxb4 {[%clk 0:00:28.5]} 28... Qe5 {[%clk 0:01:33.9]} 29. Rg3
{[%clk 0:00:26]} 29... f5 {[%clk 0:01:31.9]} 30. Qxb7 {[%clk 0:00:25.8]} 30...
Rh6 {[%clk 0:01:29]} 31. c6 {[%clk 0:00:26.2]} 31... Rc5 {[%clk 0:01:26.4]} 32.
Kg1 {[%clk 0:00:23.3]} 32... Rhxc6 {[%clk 0:01:15.7]} 33. hxg4 {[%clk
0:00:22.2]} 33... f4 {[%clk 0:01:17.2]} 34. Rh3 {[%clk 0:00:23.3]} 34... Rc1
{[%clk 0:01:17.7]} 35. Rxc1 {[%clk 0:00:22.4]} 35... Rxc1+ {[%clk 0:01:18.4]}
36. Kh2 {[%clk 0:00:24.3]} 36... e3 {[%clk 0:01:16]} 37. Rf3 {[%clk 0:00:11.7]}
37... e2 {[%clk 0:01:12.3]} 38. Re3 {[%clk 0:00:05.2]} 38... fxe3+ {[%clk
0:01:12.8]} 39. f4 {[%clk 0:00:06.7]} 39... Qxf4+ {[%clk 0:01:13.4]} 40. g3
{[%clk 0:00:08.6]} 40... Qh6+ {[%clk 0:01:13.3]} 41. Kg2 {[%clk 0:00:09.6]}
41... Qh1# {[%clk 0:01:13.5]} 0-1

[Event "*** Titled Tuesday 3|2 Blitz"]
[Site "Chess.com"]
[Date "2015.10.06"]
[Round "4"]
[White "E-Shaposhnikov"]
[Black "LyonBeast"]
[Result "0-1"]
[WhiteElo "2556"]
[BlackElo "2705"]
[TimeControl "180+2"]
[EndTime "11:50:14 PDT"]
[Termination "LyonBeast won by resignation"]

1. e4 {[%clk 0:02:46.8]} 1... c5 {[%clk 0:02:51.7]} 2. Nf3 {[%clk 0:02:47.5]}
2... d6 {[%clk 0:02:52.5]} 3. d4 {[%clk 0:02:45.9]} 3... cxd4 {[%clk 0:02:54]}
4. Nxd4 {[%clk 0:02:38.3]} 4... Nf6 {[%clk 0:02:55.4]} 5. Nc3 {[%clk 0:02:39.9]}
5... a6 {[%clk 0:02:56.7]} 6. g3 {[%clk 0:02:41.6]} 6... e5 {[%clk 0:02:56.8]}
7. Nb3 {[%clk 0:02:42.8]} 7... Be7 {[%clk 0:02:55.3]} 8. Bg2 {[%clk 0:02:43.3]}
8... Bg4 {[%clk 0:02:56.1]} 9. Qd2 {[%clk 0:02:33.8]} 9... Nbd7 {[%clk
0:02:53.8]} 10. O-O {[%clk 0:02:34.9]} 10... Nb6 {[%clk 0:02:53.4]} 11. f3
{[%clk 0:02:20]} 11... Be6 {[%clk 0:02:53.2]} 12. Qf2 {[%clk 0:02:20.3]} 12...
O-O {[%clk 0:02:51.6]} 13. Rd1 {[%clk 0:02:18.6]} 13... Rc8 {[%clk 0:02:51.3]}
14. Na5 {[%clk 0:02:15.6]} 14... Nbd7 {[%clk 0:02:35.5]} 15. Nb3 {[%clk
0:02:08.9]} 15... b5 {[%clk 0:02:34]} 16. Be3 {[%clk 0:02:06]} 16... Qc7 {[%clk
0:02:35.1]} 17. Rac1 {[%clk 0:02:01.3]} 17... b4 {[%clk 0:02:32.7]} 18. Nd5
{[%clk 0:01:54.7]} 18... Nxd5 {[%clk 0:02:30.1]} 19. exd5 {[%clk 0:01:56.6]}
19... Bf5 {[%clk 0:02:31.6]} 20. c4 {[%clk 0:01:52.8]} 20... Nc5 {[%clk
0:02:27]} 21. Nxc5 {[%clk 0:01:49.1]} 21... dxc5 {[%clk 0:02:28.9]} 22. g4
{[%clk 0:01:21.5]} 22... Bg6 {[%clk 0:02:29.7]} 23. f4 {[%clk 0:01:20.5]} 23...
f5 {[%clk 0:02:30.1]} 24. g5 {[%clk 0:01:20.3]} 24... Bd6 {[%clk 0:02:28.4]} 25.
Rf1 {[%clk 0:01:15.7]} 25... Rce8 {[%clk 0:02:19.2]} 26. Rcd1 {[%clk 0:01:15.1]}
26... Bh5 {[%clk 0:02:15.3]} 27. Rd2 {[%clk 0:01:16]} 27... e4 {[%clk
0:02:08.8]} 28. b3 {[%clk 0:01:14.6]} 28... a5 {[%clk 0:02:09.5]} 29. a4 {[%clk
0:01:14.6]} 29... bxa3 {[%clk 0:02:10]} 30. Ra1 {[%clk 0:01:15.5]} 30... Rb8
{[%clk 0:02:04.3]} 31. Rxa3 {[%clk 0:01:16.1]} 31... Rb7 {[%clk 0:02:05.3]} 32.
Rda2 {[%clk 0:00:47.8]} 32... Rfb8 {[%clk 0:02:00.3]} 33. Rxa5 {[%clk
0:00:48.7]} 33... Rxb3 {[%clk 0:02:01.1]} 34. Bxc5 {[%clk 0:00:44.4]} 34... Rb1+
{[%clk 0:01:55.6]} 35. Bf1 {[%clk 0:00:43.1]} 35... Bxf4 {[%clk 0:01:39.3]} 36.
d6 {[%clk 0:00:37.9]} 36... Bxd6 {[%clk 0:01:35.2]} 37. Bxd6 {[%clk 0:00:19.1]}
37... Qxd6 {[%clk 0:01:37.1]} 38. Qxf5 {[%clk 0:00:20.7]} 38... Qd4+ {[%clk
0:01:23.8]} 39. Rf2 {[%clk 0:00:12]} 39... e3 {[%clk 0:00:58.5]} 40. Qe6+ {[%clk
0:00:12.8]} 40... Kh8 {[%clk 0:00:59.1]} 41. Rff5 {[%clk 0:00:08.8]} 41... e2+
{[%clk 0:00:59.3]} 0-1

[Event "*** Titled Tuesday 3|2 Blitz"]
[Site "Chess.com"]
[Date "2015.10.06"]
[Round "4"]
[White "talaicito"]
[Black "Rating-Schmating"]
[Result "1-0"]
[WhiteElo "1981"]
[BlackElo "1970"]
[TimeControl "180+2"]
[EndTime "11:50:34 PDT"]
[Termination "talaicito won by checkmate"]

1. e4 {[%clk 0:03:01.9]} 1... e6 {[%clk 0:02:59.7]} 2. d4 {[%clk 0:03:02.2]}
2... d5 {[%clk 0:03:00.3]} 3. e5 {[%clk 0:03:03.5]} 3... c5 {[%clk 0:03:00.9]}
4. c3 {[%clk 0:03:05.1]} 4... Nc6 {[%clk 0:03:01.7]} 5. Nf3 {[%clk 0:03:06.6]}
5... Qb6 {[%clk 0:03:02.5]} 6. Bd3 {[%clk 0:03:08]} 6... Bd7 {[%clk 0:03:02.3]}
7. O-O {[%clk 0:03:09.4]} 7... cxd4 {[%clk 0:02:59.7]} 8. cxd4 {[%clk
0:03:10.7]} 8... Nxd4 {[%clk 0:03:00.5]} 9. Nbd2 {[%clk 0:03:12.3]} 9... Bc5
{[%clk 0:03:00.2]} 10. Rb1 {[%clk 0:03:11]} 10... Ne7 {[%clk 0:02:59.6]} 11. b4
{[%clk 0:03:07.6]} 11... Bxb4 {[%clk 0:02:56]} 12. a3 {[%clk 0:03:06.3]} 12...
Nxf3+ {[%clk 0:02:42]} 13. Nxf3 {[%clk 0:03:05.6]} 13... a5 {[%clk 0:02:40.1]}
14. axb4 {[%clk 0:03:03.5]} 14... axb4 {[%clk 0:02:40.9]} 15. Be3 {[%clk
0:02:55]} 15... Qa5 {[%clk 0:02:36.3]} 16. Qb3 {[%clk 0:02:55.4]} 16... Nc6
{[%clk 0:02:33.8]} 17. Bd2 {[%clk 0:02:42.7]} 17... O-O {[%clk 0:02:25.6]} 18.
Bxb4 {[%clk 0:02:42.4]} 18... Nxb4 {[%clk 0:02:24.6]} 19. Qxb4 {[%clk
0:02:43.2]} 19... Qxb4 {[%clk 0:02:18.3]} 20. Rxb4 {[%clk 0:02:43.7]} 20... Bc6
{[%clk 0:02:19.9]} 21. Nd4 {[%clk 0:02:44]} 21... Ra3 {[%clk 0:02:19.2]} 22. Bb5
{[%clk 0:02:35.2]} 22... Rc3 {[%clk 0:02:12.5]} 23. f4 {[%clk 0:02:19.2]} 23...
g6 {[%clk 0:02:11.8]} 24. Rfb1 {[%clk 0:01:54.8]} 24... Kg7 {[%clk 0:02:09.1]}
25. Kf2 {[%clk 0:01:53.7]} 25... Ra8 {[%clk 0:02:09.6]} 26. Ke2 {[%clk
0:01:41.6]} 26... Ra2+ {[%clk 0:02:09.6]} 27. R1b2 {[%clk 0:01:42.2]} 27... Raa3
{[%clk 0:02:08.8]} 28. Kd2 {[%clk 0:01:20.5]} 28... h5 {[%clk 0:02:03.5]} 29.
Nc2 {[%clk 0:00:46.7]} 29... Bxb5 {[%clk 0:01:30.9]} 30. Nxa3 {[%clk 0:00:24.2]}
30... Rd3+ {[%clk 0:01:27.4]} 31. Kc2 {[%clk 0:00:24.4]} 31... Ba6 {[%clk
0:01:28.1]} 32. Nb5 {[%clk 0:00:20.9]} 32... Re3 {[%clk 0:01:25.3]} 33. Kd2
{[%clk 0:00:19.1]} 33... Re4 {[%clk 0:01:19.8]} 34. Rxe4 {[%clk 0:00:19.4]}
34... dxe4 {[%clk 0:01:21.7]} 35. Nd6 {[%clk 0:00:20.2]} 35... Bf1 {[%clk
0:01:19.1]} 36. g3 {[%clk 0:00:19.9]} 36... Bg2 {[%clk 0:01:17.9]} 37. Ke3
{[%clk 0:00:21]} 37... h4 {[%clk 0:01:17.7]} 38. Rxb7 {[%clk 0:00:21.6]} 38...
hxg3 {[%clk 0:01:17.7]} 39. hxg3 {[%clk 0:00:22.7]} 39... Kh6 {[%clk 0:01:18.8]}
40. Rxf7 {[%clk 0:00:21.2]} 40... Kh5 {[%clk 0:01:20]} 41. Rg7 {[%clk
0:00:21.6]} 41... Bh3 {[%clk 0:01:19.5]} 42. Nf7 {[%clk 0:00:21.2]} 42... Bf5
{[%clk 0:01:18.2]} 43. Ng5 {[%clk 0:00:20.4]} 43... Kg4 {[%clk 0:01:19]} 44.
Nxe4 {[%clk 0:00:21.3]} 44... Kh3 {[%clk 0:01:17.8]} 45. Rh7+ {[%clk 0:00:20.4]}
45... Kg2 {[%clk 0:01:17]} 46. Rh6 {[%clk 0:00:20.6]} 46... Bxe4 {[%clk
0:01:15.9]} 47. Kxe4 {[%clk 0:00:21.1]} 47... Kxg3 {[%clk 0:01:16.5]} 48. Rxg6+
{[%clk 0:00:22.2]} 48... Kh4 {[%clk 0:01:17.8]} 49. Rxe6 {[%clk 0:00:23.2]}
49... Kg4 {[%clk 0:01:18.1]} 50. Rg6+ {[%clk 0:00:24]} 50... Kh5 {[%clk
0:01:19.5]} 51. Rg8 {[%clk 0:00:24.8]} 51... Kh6 {[%clk 0:01:20.8]} 52. e6
{[%clk 0:00:26]} 52... Kh7 {[%clk 0:01:22]} 53. Rg1 {[%clk 0:00:26.8]} 53... Kh8
{[%clk 0:01:22.5]} 54. f5 {[%clk 0:00:27.5]} 54... Kh7 {[%clk 0:01:23.8]} 55. f6
{[%clk 0:00:28.5]} 55... Kh6 {[%clk 0:01:25.3]} 56. e7 {[%clk 0:00:29.5]} 56...
Kh7 {[%clk 0:01:26.9]} 57. f7 {[%clk 0:00:30.2]} 57... Kh6 {[%clk 0:01:28.5]}
58. f8=Q+ {[%clk 0:00:29.6]} 58... Kh7 {[%clk 0:01:29.6]} 59. Qf7+ {[%clk
0:00:28.5]} 59... Kh6 {[%clk 0:01:29.6]} 60. Qf2 {[%clk 0:00:28.2]} 60... Kh7
{[%clk 0:01:30.2]} 61. e8=Q {[%clk 0:00:27.8]} 61... Kh6 {[%clk 0:01:30.9]} 62.
Qh8# {[%clk 0:00:27.9]} 1-0

[Event "*** Titled Tuesday 3|2 Blitz"]
[Site "Chess.com"]
[Date "2015.10.06"]
[Round "4"]
[White "facu57"]
[Black "pedromartinez91"]
[Result "1-0"]
[WhiteElo "2488"]
[BlackElo "2213"]
[TimeControl "180+2"]
[EndTime "11:50:48 PDT"]
[Termination "facu57 won by resignation"]

1. e4 {[%clk 0:03:01.9]} 1... c5 {[%clk 0:03:00]} 2. Nf3 {[%clk 0:02:59.4]} 2...
Nc6 {[%clk 0:03:00.1]} 3. d4 {[%clk 0:03:01.3]} 3... cxd4 {[%clk 0:03:00.5]} 4.
c3 {[%clk 0:03:01.6]} 4... d5 {[%clk 0:02:55.2]} 5. exd5 {[%clk 0:03:00]} 5...
Qxd5 {[%clk 0:02:53.6]} 6. cxd4 {[%clk 0:02:59.6]} 6... e6 {[%clk 0:02:54.5]} 7.
Nc3 {[%clk 0:02:58.2]} 7... Bb4 {[%clk 0:02:55]} 8. Bd3 {[%clk 0:02:57.8]} 8...
Nf6 {[%clk 0:02:54.9]} 9. O-O {[%clk 0:02:46.4]} 9... Qh5 {[%clk 0:02:47.1]} 10.
a3 {[%clk 0:02:40.3]} 10... Bxc3 {[%clk 0:02:38.8]} 11. bxc3 {[%clk 0:02:42.2]}
11... O-O {[%clk 0:02:38.2]} 12. Re1 {[%clk 0:02:35.6]} 12... h6 {[%clk
0:02:30.6]} 13. Rb1 {[%clk 0:02:32.4]} 13... a6 {[%clk 0:02:18.5]} 14. Ne5
{[%clk 0:02:25.3]} 14... Qxd1 {[%clk 0:02:16.9]} 15. Rxd1 {[%clk 0:02:27.2]}
15... Nxe5 {[%clk 0:02:17.3]} 16. dxe5 {[%clk 0:02:29.1]} 16... Nd7 {[%clk
0:02:08.6]} 17. f4 {[%clk 0:02:24]} 17... b6 {[%clk 0:02:06.2]} 18. Be3 {[%clk
0:02:18.4]} 18... Rb8 {[%clk 0:02:05.2]} 19. Be4 {[%clk 0:02:13.5]} 19... Bb7
{[%clk 0:01:43.8]} 20. Bc2 {[%clk 0:01:45.7]} 20... Bc6 {[%clk 0:01:34.1]} 21.
Rd6 {[%clk 0:01:44]} 21... Rfc8 {[%clk 0:01:33.8]} 22. c4 {[%clk 0:01:34.6]}
22... Kf8 {[%clk 0:01:23.7]} 23. Kf2 {[%clk 0:01:33.9]} 23... Ke7 {[%clk
0:01:24.2]} 24. g4 {[%clk 0:01:20.2]} 24... f6 {[%clk 0:01:22.4]} 25. Rbd1
{[%clk 0:01:18.4]} 25... fxe5 {[%clk 0:01:16]} 26. f5 {[%clk 0:01:19.5]} 26...
exf5 {[%clk 0:01:10.9]} 27. Bxf5 {[%clk 0:01:18]} 27... Nf6 {[%clk 0:01:04.6]}
28. Re6+ {[%clk 0:01:16.7]} 28... Kf8 {[%clk 0:01:04.6]} 29. Rxe5 {[%clk
0:01:18.6]} 29... Rc7 {[%clk 0:00:48.1]} 30. Rd6 {[%clk 0:01:18.4]} 30... Bd7
{[%clk 0:00:44.3]} 31. Bxb6 {[%clk 0:01:11.4]} 31... Rcb7 {[%clk 0:00:28.4]} 32.
c5 {[%clk 0:01:12.1]} 32... Bxf5 {[%clk 0:00:23.2]} 33. Rxf5 {[%clk 0:01:08.7]}
33... Ke7 {[%clk 0:00:24.2]} 34. Re5+ {[%clk 0:01:06.7]} 34... Kf7 {[%clk
0:00:23.5]} 35. h3 {[%clk 0:01:05.5]} 35... Nd7 {[%clk 0:00:18.3]} 36. Ree6
{[%clk 0:01:01.2]} 36... Nf8 {[%clk 0:00:14.8]} 37. Re3 {[%clk 0:00:59.5]} 37...
Nd7 {[%clk 0:00:15.8]} 38. c6 {[%clk 0:00:57.5]} 38... Rxb6 {[%clk 0:00:12.7]}
39. Rxd7+ {[%clk 0:00:59]} 39... Kg6 {[%clk 0:00:13.4]} 40. c7 {[%clk
0:01:00.9]} 40... Rc8 {[%clk 0:00:14.5]} 41. Ree7 {[%clk 0:01:00.6]} 41... Kg5
{[%clk 0:00:12.1]} 42. Rd5+ {[%clk 0:00:57.2]} 42... Kf6 {[%clk 0:00:11.9]} 43.
Rdd7 {[%clk 0:00:54.6]} 43... Rc6 {[%clk 0:00:13]} 44. Rxg7 {[%clk 0:00:53.5]}
44... a5 {[%clk 0:00:11.9]} 45. Rh7 {[%clk 0:00:53.4]} 45... Kg6 {[%clk
0:00:12.1]} 46. Rdg7+ {[%clk 0:00:53.3]} 46... Kf6 {[%clk 0:00:13.3]} 47. Rxh6+
{[%clk 0:00:54.9]} 47... Kxg7 {[%clk 0:00:14.9]} 48. Rxc6 {[%clk 0:00:56.8]}
48... a4 {[%clk 0:00:16.4]} 49. Kg3 {[%clk 0:00:57.8]} 1-0